[Event "44th Badalona Open 2018"]
[Site "Badalona"]
[Date "2018.08.07"]
[Round "7"]
[White "Naboka, Sergey"]
[Black "Munoz, Miguel"]
[Result "1/2-1/2"]
[ECO "B31"]
[WhiteElo "2341"]
[BlackElo "2475"]
[Annotator "ChessBase"]
[PlyCount "99"]
[EventDate "2018.08.01"]
[EventType "swiss"]
[EventCountry "ESP"]
[SourceTitle "playchess.com"]
[Source "ChessBase"]
[SourceQuality "1"]
[TimeControl "5400+30"]

1. e4 {[%emt 0:00:00]} c5 {[%emt 0:00:00]} 2. Nf3 {[%emt 0:00:04]} Nc6 {[%emt 0:00:00]} 3. Bb5 {[%emt 0:00:19]} g6 {[%emt 0:00:16]} 4. Bxc6 {[%emt 0:00:20]} dxc6 {[%emt 0:00:06]} 5. h3 {[%emt 0:00:07]} Bg7 {[%emt 0:00:06]} 6. d3 {[%emt 0:00:14]} Nf6 {[%emt 0:00:00]} 7. Nc3 Nd7 {[%emt 0:00:00]} 8. Be3 {[%emt 0:03:28]} e5 {[%emt 0:00:16]} 9. Qd2 Qe7 10. Bh6 {[%emt 0:02:32]} Bxh6 {[%emt 0:01:54]} 11. Qxh6 {[%emt 0:02:30]} f6 {[%emt 0:08:02]} 12. Nh2 {[%emt 0:02:14]} Nb6 {[%emt 0:02:23]} 13. a4 {[%emt 0:01:21]} Be6 {[%emt 0:01:06]} 14. O-O {[%emt 0:03:24]} O-O-O {[%emt 0:02:20]} 15. Qe3 {[%emt 0:03:34]} g5 {[%emt 0:04:19]} 16. Rfb1 {[%emt 0:01:11]} Kb8 {[%emt 0:00:04]} 17. a5 {[%emt 0:08:39]} Nd7 {[%emt 0:02:16]} 18. Na4 {[%emt 0:01:07]} h5 {[%emt 0:06:07]} 19. Ra3 {[%emt 0:01:20]} g4 {[%emt 0:03:16]} 20. h4 {[%emt 0:03:07]} c4 {[%emt 0:05:00]} 21. Nf1 {[%emt 0:02:16]} f5 {[%emt 0:01:22]} 22. exf5 {[%emt 0:09:17]} Bxf5 23. b4 {[%emt 0:01:08]} cxd3 {[%emt 0:04:27]} 24. cxd3 {[%emt 0:02:16]} a6 {[%emt 0:04:27]} 25. Ng3 {[%emt 0:04:06]} Bg6 {[%emt 0:01:52]} 26. Nc5 {[%emt 0:09:02]} Rhe8 {[%emt 0:02:24]} 27. Nge4 {[%emt 0:03:32]} Bxe4 {[%emt 0:06:48]} 28. Nxe4 Nf6 {[%emt 0:00:13]} 29. Nxf6 {[%emt 0:06:22]} Qxf6 {[%emt 0:06:59]} 30. Rc3 {[%emt 0:02:10]} Rd4 {[%emt 0:02:47]} 31. Rc4 {[%emt 0:03:03]} Red8 {[%emt 0:07:48]} 32. Re1 {[%emt 0:00:30]} R4d5 {[%emt 0:02:29]} 33. Qg3 {[%emt 0:01:13]} Ka8 34. Re3 {[%emt 0:01:39]} Qd6 {[%emt 0:03:05]} 35. Rce4 c5 {[%emt 0:04:05]} 36. bxc5 {[%emt 0:04:01]} Qxc5 {[%emt 0:00:15]} 37. Rxe5 {[%emt 0:02:11]} Qxa5 {[%emt 0:03:46]} 38. Kh2 Qc7 39. Rxd5 {[%emt 0:04:40]} Qxg3+ {[%emt 0:00:41]} 40. Kxg3 {[%emt 0:00:02]} Rxd5 {[%emt 0:00:08]} 41. Kf4 {[%emt 0:00:06]} b5 42. Re5 {[%emt 0:05:13]} Rxd3 {[%emt 0:04:54]} 43. Rxh5 b4 44. Ra5 {[%emt 0:02:08]} Kb7 {[%emt 0:00:05]} 45. Ra4 Rd4+ {[%emt 0:03:17]} 46. Ke5 {[%emt 0:01:03]} Rc4 {[%emt 0:00:04]} 47. Kd5 {[%emt 0:04:26]} Rf4 {[%emt 0:00:07]} 48. Ke5 {[%emt 0:02:39]} Rc4 49. Kd5 {[%emt 0:01:35]} Rf4 {[%emt 0:00:37]} 50. Ke5 1/2-1/2

[Event "44th Badalona Open 2018"]
[Site "Badalona"]
[Date "2018.08.07"]
[Round "7"]
[White "Rodriguez Alvarez, Vidal Hely"]
[Black "Escalante Ramirez, Brian Sebastian"]
[Result "1/2-1/2"]
[ECO "E91"]
[WhiteElo "2275"]
[BlackElo "2438"]
[Annotator "NA"]
[PlyCount "77"]
[EventDate "2018.08.01"]
[EventType "swiss"]
[EventCountry "ESP"]
[SourceTitle "playchess.com"]
[Source "ChessBase"]
[SourceQuality "1"]
[TimeControl "5400+30"]

1. Nf3 Nf6 2. c4 g6 3. Nc3 Bg7 4. e4 d6 5. d4 O-O 6. Be2 c5 7. O-O Re8 8. Re1 Bg4 9. Be3 Bxf3 10. Bxf3 cxd4 11. Bxd4 Nc6 12. Be3 Rc8 13. Be2 a6 14. f3 Na5 15. Qa4 Nd7 16. Rac1 Nc5 17. Qa3 Ne6 18. Qb4 Bd4 19. Bxd4 Nxd4 20. Bf1 Rc5 21. Ne2 e6 22. b3 Nac6 23. Qd2 Qa5 24. Red1 Qxd2 25. Rxd2 e5 26. Nxd4 Nxd4 27. Be2 Ra5 28. Kf2 Nc6 29. Kg1 Rd8 30. Kf2 Kf8 31. Ke3 Ke7 32. Bd3 Ra3 33. g3 b6 34. f4 f6 35. Rf2 a5 36. Rcf1 Rf8 37. g4 exf4+ 38. Kxf4 Ne5 39. Bb1 1/2-1/2

[Event "44th Badalona Open 2018"]
[Site "Badalona"]
[Date "2018.08.07"]
[Round "7"]
[White "Ferre Campos, Josep"]
[Black "Casares Bonals, Ainhoa"]
[Result "1-0"]
[ECO "B96"]
[WhiteElo "1878"]
[BlackElo "1637"]
[Annotator "NA"]
[PlyCount "45"]
[EventDate "2018.08.01"]
[EventType "swiss"]
[EventCountry "ESP"]
[SourceTitle "playchess.com"]
[Source "ChessBase"]
[SourceQuality "1"]
[TimeControl "5400+30"]

1. e4 {[%emt 0:00:16]} c5 {[%emt 0:00:00]} 2. Nf3 {[%emt 0:00:30]} d6 {[%emt 0:00:00]} 3. d4 {[%emt 0:00:16]} cxd4 {[%emt 0:00:03]} 4. Nxd4 {[%emt 0:00:00]} Nf6 {[%emt 0:00:07]} 5. Nc3 {[%emt 0:00:00]} a6 {[%emt 0:00:07]} 6. Bg5 {[%emt 0:00:00]} e6 {[%emt 0:00:34]} 7. f4 {[%emt 0:01:06]} h6 {[%emt 0:00:28]} 8. Bh4 {[%emt 0:02:49]} Qb6 {[%emt 0:03:55]} 9. Bxf6 {[%emt 0:08:36]} gxf6 {[%emt 0:01:20]} 10. Qd2 {[%emt 0:00:37]} Qxb2 {[%emt 0:04:47]} 11. Rb1 {[%emt 0:03:18]} Qa3 {[%emt 0:08:57]} 12. f5 {[%emt 0:06:06]} Bg7 {[%emt 0:03:45]} 13. Rb3 {[%emt 0:21:56]} Qa5 {[%emt 0:02:32]} 14. fxe6 {[%emt 0:02:29]} fxe6 {[%emt 0:04:46]} 15. Bc4 {[%emt 0:01:14]} Ke7 {[%emt 0:02:39]} 16. Nd5+ {[%emt 0:05:25]} exd5 {[%emt 0:00:23]} 17. Qxa5 {[%emt 0:00:32]} dxc4 {[%emt 0:00:49]} 18. Qc7+ {[%emt 0:00:17]} Nd7 {[%emt 0:00:49]} 19. Nf5+ {[%emt 0:02:44]} Kf7 20. Rg3 {[%emt 0:00:50]} Rg8 {[%emt 0:01:14]} 21. Qxc4+ {[%emt 0:00:25]} Kf8 {[%emt 0:00:53]} 22. Qe6 Ne5 23. Qe7# 1-0

[Event "44th Badalona Open 2018"]
[Site "Badalona"]
[Date "2018.08.07"]
[Round "7"]
[White "Hovakimyan, Narek"]
[Black "Mut Company, Guillem Joan"]
[Result "0-1"]
[ECO "B12"]
[WhiteElo "1851"]
[BlackElo "1898"]
[Annotator "NA"]
[PlyCount "104"]
[EventDate "2018.08.01"]
[EventType "swiss"]
[EventCountry "ESP"]
[SourceTitle "playchess.com"]
[Source "ChessBase"]
[SourceQuality "1"]
[TimeControl "5400+30"]

1. e4 {[%emt 0:00:00]} c6 {[%emt 0:00:00]} 2. d4 {[%emt 0:00:23]} d5 {[%emt 0:00:00]} 3. e5 {[%emt 0:00:11]} c5 {[%emt 0:00:06]} 4. c3 {[%emt 0:00:41]} Nc6 {[%emt 0:00:40]} 5. Nf3 {[%emt 0:02:02]} cxd4 {[%emt 0:01:16]} 6. cxd4 {[%emt 0:00:15]} Bg4 {[%emt 0:00:36]} 7. Nc3 {[%emt 0:10:09]} e6 {[%emt 0:00:31]} 8. h3 {[%emt 0:01:00]} Bxf3 {[%emt 0:01:23]} 9. gxf3 {[%emt 0:00:14]} Qb6 {[%emt 0:03:27]} 10. Bb5 {[%emt 0:01:23]} Nge7 {[%emt 0:02:26]} 11. Be3 {[%emt 0:07:07]} Nf5 {[%emt 0:02:27]} 12. O-O {[%emt 0:01:02]} Be7 {[%emt 0:09:50]} 13. Rc1 {[%emt 0:02:14]} Rc8 {[%emt 0:07:08]} 14. Bxc6+ {[%emt 0:08:46]} Rxc6 {[%emt 0:06:00]} 15. Na4 {[%emt 0:04:54]} Rxc1 {[%emt 0:06:30]} 16. Qxc1 {[%emt 0:01:47]} Qc6 {[%emt 0:01:15]} 17. Qxc6+ {[%emt 0:00:47]} bxc6 {[%emt 0:00:05]} 18. Rc1 {[%emt 0:00:31]} Kd7 {[%emt 0:00:52]} 19. Nc5+ {[%emt 0:14:30]} Bxc5 {[%emt 0:01:48]} 20. Rxc5 {[%emt 0:00:09]} Kc7 {[%emt 0:10:33]} 21. b4 {[%emt 0:01:03]} a6 {[%emt 0:01:46]} 22. Kf1 {[%emt 0:03:26]} h5 {[%emt 0:07:12]} 23. Ke2 {[%emt 0:03:59]} Rg8 {[%emt 0:03:50]} 24. Rc1 {[%emt 0:02:15]} Rb8 {[%emt 0:01:05]} 25. a3 {[%emt 0:02:28]} a5 {[%emt 0:02:23]} 26. Rb1 {[%emt 0:02:44]} axb4 {[%emt 0:00:31]} 27. axb4 {[%emt 0:00:01]} Ra8 {[%emt 0:01:40]} 28. f4 {[%emt 0:06:17]} Kb6 {[%emt 0:02:07]} 29. Bc1 {[%emt 0:02:37]} Kb5 {[%emt 0:01:56]} 30. Kd3 {[%emt 0:00:21]} Ra2 {[%emt 0:01:40]} 31. Bb2 {[%emt 0:01:16]} Kxb4 {[%emt 0:05:53]} 32. Bc3+ {[%emt 0:00:38]} Ka3 {[%emt 0:01:24]} 33. Bd2 {[%emt 0:01:44]} Ka4 {[%emt 0:02:19]} 34. Rb4+ {[%emt 0:00:30]} Ka3 {[%emt 0:00:28]} 35. Rb7 {[%emt 0:00:25]} Ka4 {[%emt 0:02:49]} 36. Ra7+ {[%emt 0:04:46]} Kb3 {[%emt 0:00:09]} 37. Rb7+ {[%emt 0:01:32]} Ka4 {[%emt 0:00:18]} 38. Rxf7 {[%emt 0:00:47]} Kb5 {[%emt 0:00:56]} 39. Rb7+ {[%emt 0:01:16]} Ka6 {[%emt 0:00:25]} 40. Rb8 {[%emt 0:00:03]} Ka7 {[%emt 0:00:53]} 41. Re8 {[%emt 0:00:07]} Ra3+ {[%emt 0:02:38]} 42. Bc3 {[%emt 0:01:50]} c5 {[%emt 0:00:30]} 43. Kc2 {[%emt 0:02:28]} cxd4 {[%emt 0:00:28]} 44. Bb4 {[%emt 0:01:11]} Rxh3 {[%emt 0:00:30]} 45. Rxe6 {[%emt 0:00:55]} Rf3 {[%emt 0:00:33]} 46. Bd2 {[%emt 0:03:33]} Rxf2 {[%emt 0:02:07]} 47. Rg6 {[%emt 0:00:17]} h4 {[%emt 0:01:48]} 48. Rg5 {[%emt 0:00:07]} g6 {[%emt 0:04:51]} 49. Rxg6 {[%emt 0:01:55]} h3 {[%emt 0:00:05]} 50. e6 {[%emt 0:00:30]} Re2 {[%emt 0:00:49]} 51. Kd3 {[%emt 0:00:21]} h2 {[%emt 0:01:05]} 52. Kxe2 {[%emt 0:01:36]} h1=Q {[%emt 0:00:22]} 0-1

[Event "44th Badalona Open 2018"]
[Site "Badalona"]
[Date "2018.08.08"]
[Round "8"]
[White "Gallego Alcaraz, Andres Felipe"]
[Black "Aguero Jimenez, Luis Lazaro"]
[Result "1/2-1/2"]
[ECO "D20"]
[WhiteElo "2500"]
[BlackElo "2482"]
[Annotator "ChessBase"]
[PlyCount "53"]
[EventDate "2018.08.01"]
[EventType "swiss"]
[EventCountry "ESP"]
[SourceTitle "playchess.com"]
[Source "ChessBase"]
[SourceQuality "1"]
[TimeControl "5400+30"]

1. d4 {[%emt 0:00:00]} d5 {[%emt 0:00:00]} 2. c4 {[%emt 0:00:00]} dxc4 {[%emt 0:00:00]} 3. e4 e5 {[%emt 0:00:00]} 4. Nf3 {[%emt 0:00:14]} exd4 {[%emt 0:00:00]} 5. Bxc4 {[%emt 0:00:23]} Bb4+ {[%emt 0:00:00]} 6. Nbd2 Nc6 {[%emt 0:00:00]} 7. O-O {[%emt 0:01:09]} Nf6 {[%emt 0:00:00]} 8. e5 {[%emt 0:00:28]} Nd5 {[%emt 0:00:38]} 9. Nb3 {[%emt 0:00:16]} Nb6 {[%emt 0:01:06]} 10. Bg5 {[%emt 0:00:09]} Be7 11. Bxe7 {[%emt 0:00:09]} Qxe7 {[%emt 0:00:45]} 12. Bb5 {[%emt 0:00:30]} Bd7 {[%emt 0:01:12]} 13. Re1 {[%emt 0:00:31]} O-O {[%emt 0:49:38]} 14. Rc1 {[%emt 0:06:51]} Rfe8 {[%emt 0:00:30]} 15. Nc5 {[%emt 0:04:58]} a6 {[%emt 0:00:04]} 16. Bxc6 {[%emt 0:00:08]} Bxc6 {[%emt 0:05:03]} 17. Nxd4 {[%emt 0:17:40]} Rad8 {[%emt 0:00:07]} 18. Nxc6 {[%emt 0:00:30]} bxc6 {[%emt 0:04:45]} 19. Qe2 {[%emt 0:08:04]} Rd5 {[%emt 0:06:02]} 20. b4 {[%emt 0:09:54]} a5 {[%emt 0:02:55]} 21. Qb2 {[%emt 0:00:49]} axb4 {[%emt 0:00:15]} 22. Qxb4 {[%emt 0:01:29]} Rxe5 {[%emt 0:00:02]} 23. Rxe5 {[%emt 0:03:14]} Qxe5 {[%emt 0:07:26]} 24. g3 {[%emt 0:03:34]} Qg5 25. Rd1 {[%emt 0:00:46]} Nd5 {[%emt 0:01:22]} 26. Qd4 {[%emt 0:03:26]} Qh5 27. Rc1 1/2-1/2

[Event "44th Badalona Open 2018"]
[Site "Badalona"]
[Date "2018.08.08"]
[Round "8"]
[White "Escalante Ramirez, Brian Sebastian"]
[Black "Hernandez, Cristian Andres"]
[Result "1-0"]
[ECO "B48"]
[WhiteElo "2438"]
[BlackElo "2323"]
[Annotator "NA"]
[PlyCount "83"]
[EventDate "2018.08.01"]
[EventType "swiss"]
[EventCountry "ESP"]
[SourceTitle "playchess.com"]
[Source "ChessBase"]
[SourceQuality "1"]
[TimeControl "5400+30"]

1. e4 {[%emt 0:00:00]} c5 {[%emt 0:00:00]} 2. Nc3 {[%emt 0:00:00]} e6 {[%emt 0:00:00]} 3. Nge2 {[%emt 0:00:00]} Nc6 {[%emt 0:00:10]} 4. d4 {[%emt 0:00:13]} cxd4 {[%emt 0:00:05]} 5. Nxd4 {[%emt 0:00:03]} Qc7 {[%emt 0:00:00]} 6. Be3 {[%emt 0:01:11]} a6 {[%emt 0:01:22]} 7. a3 {[%emt 0:00:16]} b5 {[%emt 0:03:03]} 8. Nxc6 {[%emt 0:00:30]} Qxc6 {[%emt 0:00:35]} 9. Be2 {[%emt 0:05:52]} Bb7 {[%emt 0:13:35]} 10. O-O {[%emt 0:00:30]} Bc5 {[%emt 0:06:09]} 11. Qd3 {[%emt 0:16:53]} Ne7 {[%emt 0:09:09]} 12. Rfd1 {[%emt 0:10:19]} Rd8 {[%emt 0:05:43]} 13. Bf3 {[%emt 0:02:44]} Bxe3 {[%emt 0:00:30]} 14. Qxe3 {[%emt 0:30:16]} d6 {[%emt 0:10:09]} 15. Qd4 {[%emt 0:00:37]} e5 {[%emt 0:02:29]} 16. Qe3 {[%emt 0:00:04]} O-O {[%emt 0:00:30]} 17. Rd2 {[%emt 0:00:02]} Qc7 {[%emt 0:15:41]} 18. Rad1 {[%emt 0:10:10]} Bc8 19. Rd3 {[%emt 0:00:02]} Be6 {[%emt 0:05:43]} 20. Qd2 {[%emt 0:00:38]} Nc8 {[%emt 0:02:31]} 21. Be2 {[%emt 0:04:07]} Rd7 {[%emt 0:00:30]} 22. Nd5 {[%emt 0:07:18]} Qd8 {[%emt 0:09:25]} 23. h3 {[%emt 0:00:30]} Qh4 {[%emt 0:00:30]} 24. Qe3 {[%emt 0:00:51]} f5 {[%emt 0:00:46]} 25. exf5 {[%emt 0:00:30]} Bxf5 {[%emt 0:00:16]} 26. R3d2 {[%emt 0:03:15]} Rdf7 27. Qg3 {[%emt 0:00:02]} Qxg3 {[%emt 0:03:29]} 28. fxg3 {[%emt 0:00:30]} Be6 {[%emt 0:02:52]} 29. c4 {[%emt 0:00:50]} Bxd5 {[%emt 0:00:30]} 30. Rxd5 {[%emt 0:00:00]} Rf2 {[%emt 0:01:51]} 31. R5d2 {[%emt 0:00:39]} e4 {[%emt 0:02:13]} 32. cxb5 {[%emt 0:00:08]} e3 {[%emt 0:00:04]} 33. Bc4+ {[%emt 0:00:40]} Kh8 {[%emt 0:00:35]} 34. Rxf2 {[%emt 0:03:10]} Rxf2 {[%emt 0:00:05]} 35. bxa6 {[%emt 0:00:43]} Rxb2 36. Rf1 {[%emt 0:00:37]} Rf2 {[%emt 0:01:49]} 37. Rxf2 exf2+ {[%emt 0:00:05]} 38. Kxf2 {[%emt 0:00:32]} g5 {[%emt 0:00:00]} 39. Ke3 {[%emt 0:00:48]} Kg7 {[%emt 0:00:00]} 40. Kd4 {[%emt 0:00:30]} Kf6 {[%emt 0:00:18]} 41. Kd5 {[%emt 0:00:22]} Nb6+ {[%emt 0:00:04]} 42. Kc6 {[%emt 0:01:02]} 1-0

[Event "44th Badalona Open 2018"]
[Site "Badalona"]
[Date "2018.08.08"]
[Round "8"]
[White "Panelo, Marcelo"]
[Black "Sturt, Raven M"]
[Result "0-1"]
[ECO "A83"]
[WhiteElo "2360"]
[BlackElo "2437"]
[Annotator "NA"]
[PlyCount "60"]
[EventDate "2018.08.01"]
[EventType "swiss"]
[EventCountry "ESP"]
[SourceTitle "playchess.com"]
[Source "ChessBase"]
[SourceQuality "1"]
[TimeControl "5400+30"]

1. d4 {[%emt 0:14:08]} f5 {[%emt 0:00:00]} 2. e4 fxe4 3. Nc3 {[%emt 0:03:42]} Nf6 {[%emt 0:00:38]} 4. Bg5 {[%emt 0:00:04]} Nc6 {[%emt 0:00:10]} 5. d5 {[%emt 0:00:00]} Ne5 {[%emt 0:00:22]} 6. Qe2 {[%emt 0:00:00]} Nf7 {[%emt 0:06:45]} 7. Bxf6 {[%emt 0:00:00]} exf6 {[%emt 0:01:57]} 8. Nxe4 {[%emt 0:00:22]} Be7 {[%emt 0:05:16]} 9. d6 {[%emt 0:00:37]} cxd6 {[%emt 0:09:37]} 10. Nc3 {[%emt 0:03:46]} d5 11. O-O-O {[%emt 0:00:09]} O-O {[%emt 0:01:48]} 12. Nxd5 {[%emt 0:21:30]} Bc5 {[%emt 0:06:58]} 13. f4 {[%emt 0:06:27]} d6 {[%emt 0:07:56]} 14. Nf3 {[%emt 0:00:21]} Re8 {[%emt 0:02:21]} 15. Qd2 {[%emt 0:01:11]} Bd7 16. Bc4 {[%emt 0:00:06]} b5 {[%emt 0:02:25]} 17. Bb3 {[%emt 0:04:03]} a5 {[%emt 0:18:02]} 18. c3 {[%emt 0:03:20]} b4 {[%emt 0:00:06]} 19. cxb4 {[%emt 0:02:24]} axb4 {[%emt 0:13:47]} 20. Rhe1 {[%emt 0:00:57]} Kh8 {[%emt 0:00:11]} 21. Rxe8+ {[%emt 0:06:35]} Bxe8 {[%emt 0:01:25]} 22. Kb1 {[%emt 0:02:54]} Nh6 {[%emt 0:00:56]} 23. Nd4 {[%emt 0:08:46]} Qa5 24. h3 Bg6+ {[%emt 0:01:53]} 25. Ka1 {[%emt 0:00:37]} Bxd4 {[%emt 0:01:17]} 26. Qxd4 {[%emt 0:00:18]} Bc2 {[%emt 0:00:06]} 27. Bc4 {[%emt 0:03:49]} Nf5 28. Qd2 {[%emt 0:00:00]} Bxd1 {[%emt 0:00:58]} 29. Qxd1 {[%emt 0:00:01]} Qc5 {[%emt 0:00:17]} 30. b3 Ne3 0-1

[Event "44th Badalona Open 2018"]
[Site "Badalona"]
[Date "2018.08.08"]
[Round "8"]
[White "Verstraeten, Reinaert"]
[Black "Fluvia Poyatos, Jordi"]
[Result "1/2-1/2"]
[ECO "E04"]
[WhiteElo "2303"]
[BlackElo "2442"]
[Annotator "NA"]
[PlyCount "30"]
[EventDate "2018.08.01"]
[EventType "swiss"]
[EventCountry "ESP"]
[SourceTitle "playchess.com"]
[Source "ChessBase"]
[SourceQuality "1"]
[TimeControl "5400+30"]

1. c4 e6 {[%emt 0:01:33]} 2. Nf3 {[%emt 0:00:00]} Nf6 {[%emt 0:00:59]} 3. g3 {[%emt 0:00:14]} d5 {[%emt 0:00:45]} 4. d4 {[%emt 0:00:13]} dxc4 {[%emt 0:01:24]} 5. Bg2 {[%emt 0:00:09]} Nc6 {[%emt 0:00:33]} 6. Qa4 {[%emt 0:00:41]} Bb4+ {[%emt 0:00:52]} 7. Bd2 {[%emt 0:00:30]} Bd6 {[%emt 0:02:20]} 8. Qxc4 {[%emt 0:06:49]} O-O {[%emt 0:00:30]} 9. O-O {[%emt 0:00:10]} e5 {[%emt 0:00:51]} 10. dxe5 {[%emt 0:15:01]} Nxe5 {[%emt 0:00:12]} 11. Nxe5 {[%emt 0:01:22]} Bxe5 {[%emt 0:06:24]} 12. Qc2 {[%emt 0:00:23]} c6 {[%emt 0:00:30]} 13. Bc3 {[%emt 0:01:42]} Qe7 {[%emt 0:02:16]} 14. Bxe5 {[%emt 0:04:45]} Qxe5 {[%emt 0:00:30]} 15. Nc3 {[%emt 0:00:27]} Be6 1/2-1/2

[Event "44th Badalona Open 2018"]
[Site "Badalona"]
[Date "2018.08.08"]
[Round "8"]
[White "De Strycker, Nathan"]
[Black "Ootes, Lars"]
[Result "1/2-1/2"]
[ECO "A41"]
[WhiteElo "2251"]
[BlackElo "2379"]
[Annotator "NA"]
[PlyCount "42"]
[EventDate "2018.08.01"]
[EventType "swiss"]
[EventCountry "ESP"]
[SourceTitle "playchess.com"]
[Source "ChessBase"]
[SourceQuality "1"]
[TimeControl "5400+30"]

1. d4 d6 {[%emt 0:00:00]} 2. c4 {[%emt 0:02:57]} f5 {[%emt 0:00:02]} 3. Nf3 {[%emt 0:00:30]} Nf6 {[%emt 0:00:30]} 4. g3 {[%emt 0:02:59]} g6 {[%emt 0:00:18]} 5. Bg2 {[%emt 0:00:03]} Bg7 {[%emt 0:00:12]} 6. O-O {[%emt 0:00:06]} O-O {[%emt 0:00:12]} 7. b3 {[%emt 0:01:07]} c6 {[%emt 0:03:53]} 8. Bb2 {[%emt 0:00:42]} a5 {[%emt 0:03:42]} 9. Nc3 {[%emt 0:04:54]} Qc7 {[%emt 0:00:30]} 10. d5 {[%emt 0:06:37]} Na6 {[%emt 0:02:49]} 11. Nd4 {[%emt 0:00:30]} e5 {[%emt 0:20:38]} 12. dxe6 {[%emt 0:05:53]} Nc5 {[%emt 0:10:07]} 13. Qd2 {[%emt 0:04:15]} a4 14. Rad1 {[%emt 0:09:01]} axb3 {[%emt 0:09:32]} 15. axb3 {[%emt 0:00:30]} Re8 {[%emt 0:06:16]} 16. Ra1 {[%emt 0:12:35]} Rxa1 {[%emt 0:13:09]} 17. Rxa1 {[%emt 0:00:30]} Qb6 {[%emt 0:05:04]} 18. Na4 {[%emt 0:05:13]} Nxa4 {[%emt 0:00:30]} 19. Rxa4 {[%emt 0:00:39]} Bxe6 {[%emt 0:01:25]} 20. Nxe6 {[%emt 0:13:01]} Rxe6 {[%emt 0:01:50]} 21. Bxf6 {[%emt 0:05:31]} Bxf6 {[%emt 0:05:28]} 1/2-1/2

[Event "44th Badalona Open 2018"]
[Site "Badalona"]
[Date "2018.08.08"]
[Round "8"]
[White "Mut Company, Guillem Joan"]
[Black "Ferre Campos, Josep"]
[Result "1/2-1/2"]
[ECO "A41"]
[WhiteElo "1898"]
[BlackElo "1878"]
[Annotator "NA"]
[PlyCount "35"]
[EventDate "2018.08.01"]
[EventType "swiss"]
[EventCountry "ESP"]
[SourceTitle "playchess.com"]
[Source "ChessBase"]
[SourceQuality "1"]
[TimeControl "5400+30"]

1. d4 {[%emt 0:00:00]} d6 {[%emt 0:00:30]} 2. Nf3 {[%emt 0:00:18]} g6 {[%emt 0:00:34]} 3. e4 {[%emt 0:02:25]} Bg7 {[%emt 0:00:19]} 4. c4 {[%emt 0:00:49]} Nd7 {[%emt 0:01:40]} 5. Nc3 {[%emt 0:01:23]} c5 {[%emt 0:00:32]} 6. d5 {[%emt 0:01:29]} a6 {[%emt 0:03:26]} 7. a4 {[%emt 0:04:05]} Rb8 {[%emt 0:09:30]} 8. Be2 {[%emt 0:05:56]} Ngf6 {[%emt 0:08:44]} 9. h3 {[%emt 0:00:51]} h6 {[%emt 0:04:42]} 10. O-O {[%emt 0:02:37]} O-O {[%emt 0:00:42]} 11. Be3 {[%emt 0:03:15]} Kh7 {[%emt 0:07:04]} 12. Nd2 {[%emt 0:03:52]} g5 {[%emt 0:05:17]} 13. Qc2 {[%emt 0:10:15]} Ne5 {[%emt 0:00:34]} 14. Nf3 {[%emt 0:02:59]} Nfd7 {[%emt 0:00:17]} 15. Nxe5 {[%emt 0:04:02]} Nxe5 {[%emt 0:08:18]} 16. f4 gxf4 17. Bxf4 Qe8 18. Rf2 1/2-1/2

[Event "44th Badalona Open 2018"]
[Site "Badalona"]
[Date "2018.08.08"]
[Round "8"]
[White "Casares Bonals, Ainhoa"]
[Black "Kruijf, Caspar"]
[Result "1-0"]
[ECO "C55"]
[WhiteElo "1637"]
[BlackElo "1918"]
[Annotator "NA"]
[PlyCount "117"]
[EventDate "2018.08.01"]
[EventType "swiss"]
[EventCountry "ESP"]
[SourceTitle "playchess.com"]
[Source "ChessBase"]
[SourceQuality "1"]
[TimeControl "5400+30"]

1. e4 {[%emt 0:00:00]} e5 {[%emt 0:00:00]} 2. Nf3 {[%emt 0:00:00]} Nc6 {[%emt 0:00:00]} 3. d4 {[%emt 0:00:13]} exd4 {[%emt 0:00:00]} 4. Bc4 {[%emt 0:00:55]} Bc5 {[%emt 0:00:00]} 5. O-O {[%emt 0:00:46]} Nf6 {[%emt 0:00:00]} 6. e5 {[%emt 0:01:06]} d5 {[%emt 0:00:00]} 7. exf6 {[%emt 0:00:23]} dxc4 {[%emt 0:00:00]} 8. fxg7 {[%emt 0:01:18]} Rg8 {[%emt 0:00:11]} 9. Bg5 {[%emt 0:06:28]} Be7 {[%emt 0:00:52]} 10. Re1 {[%emt 0:08:29]} Be6 {[%emt 0:03:53]} 11. Bxe7 {[%emt 0:16:01]} Kxe7 {[%emt 0:03:58]} 12. c3 {[%emt 0:02:59]} d3 {[%emt 0:15:36]} 13. Nbd2 {[%emt 0:17:03]} Qd5 {[%emt 0:07:30]} 14. b3 {[%emt 0:02:46]} cxb3 {[%emt 0:03:21]} 15. axb3 {[%emt 0:00:30]} Rxg7 {[%emt 0:11:57]} 16. c4 {[%emt 0:02:53]} Qf5 {[%emt 0:12:33]} 17. Nf1 {[%emt 0:04:30]} Qg6 {[%emt 0:00:30]} 18. Ng3 {[%emt 0:01:40]} Kf8 {[%emt 0:04:52]} 19. h3 {[%emt 0:26:06]} Rd8 20. Ne5 {[%emt 0:00:25]} Nxe5 {[%emt 0:01:02]} 21. Rxe5 {[%emt 0:02:11]} Qf6 22. Re3 {[%emt 0:00:56]} Qd4 {[%emt 0:05:05]} 23. Ra2 {[%emt 0:00:42]} d2 {[%emt 0:00:40]} 24. Kh2 {[%emt 0:00:37]} a6 {[%emt 0:21:44]} 25. Re2 {[%emt 0:00:30]} Qc5 {[%emt 0:01:47]} 26. Rexd2 {[%emt 0:00:57]} Re8 {[%emt 0:00:56]} 27. Rd8 {[%emt 0:01:11]} Qe7 {[%emt 0:00:55]} 28. Rad2 {[%emt 0:01:02]} f6 29. Rxe8+ {[%emt 0:00:38]} Kxe8 {[%emt 0:00:36]} 30. Re2 {[%emt 0:00:26]} Qd7 {[%emt 0:01:02]} 31. Qe1 {[%emt 0:01:01]} Re7 {[%emt 0:02:46]} 32. Nh5 {[%emt 0:00:24]} Qd6+ 33. Kg1 {[%emt 0:00:36]} Kf7 {[%emt 0:01:01]} 34. Qb1 {[%emt 0:00:15]} f5 {[%emt 0:01:12]} 35. Qb2 {[%emt 0:00:44]} Kg6 {[%emt 0:01:25]} 36. Qf6+ {[%emt 0:00:30]} Kxh5 {[%emt 0:00:12]} 37. g4+ {[%emt 0:00:11]} fxg4 {[%emt 0:00:02]} 38. Re5+ {[%emt 0:00:15]} Qxe5 39. Qxe5+ {[%emt 0:00:22]} Kg6 {[%emt 0:01:03]} 40. hxg4 {[%emt 0:00:30]} Kf7 {[%emt 0:01:00]} 41. g5 {[%emt 0:01:02]} Ke8 {[%emt 0:00:07]} 42. Qh8+ {[%emt 0:00:31]} Kd7 43. Qb8 {[%emt 0:00:47]} Kc6 {[%emt 0:00:51]} 44. Qf8 {[%emt 0:00:10]} Kd7 {[%emt 0:01:16]} 45. Qh8 {[%emt 0:00:42]} Bf5 {[%emt 0:01:09]} 46. Qd4+ {[%emt 0:00:33]} Ke8 {[%emt 0:00:37]} 47. f4 {[%emt 0:00:41]} Re1+ {[%emt 0:00:30]} 48. Kf2 {[%emt 0:00:15]} Re4 49. Qh8+ {[%emt 0:00:41]} Kd7 {[%emt 0:00:38]} 50. Qg7+ {[%emt 0:00:24]} Re7 {[%emt 0:01:35]} 51. Qf6 {[%emt 0:00:38]} Bc2 {[%emt 0:00:22]} 52. f5 {[%emt 0:00:30]} Ke8 {[%emt 0:00:30]} 53. Qh8+ {[%emt 0:00:24]} Kd7 {[%emt 0:00:12]} 54. Qd4+ {[%emt 0:00:01]} Ke8 {[%emt 0:00:01]} 55. f6 {[%emt 0:00:35]} Re4 {[%emt 0:00:25]} 56. Qd5 {[%emt 0:00:44]} Rf4+ 57. Kg3 {[%emt 0:00:30]} Re4 {[%emt 0:01:30]} 58. Qg8+ {[%emt 0:00:28]} Kd7 59. f7 {[%emt 0:00:30]} 1-0